bitfinex-derivatives/quotes_ETHF0:USTF0_20250212
["timestamp","ask_amount","ask_price","bid_price","bid_amount"]
[1739343032359,0.6107,2604.3,2604.0,40.8]
[1739343033361,0.6107,2604.3,2603.9,3.2078]
[1739343033662,3.8185,2604.3,2603.6,1.1753]
[1739343033863,3.1542133,2604.2,2603.7,40.8]
[1739343034163,0.5735,2604.1,2603.7,40.8]
[1739343034365,0.5735,2604.1,2603.6,1.1753]
[1739343034564,3.2078,2604.3,2603.9,3.1542133]
[1739343034768,0.00384062,2604.5,2603.9,3.1542133]
[1739343035061,0.00384062,2604.5,2604.0,40.8]
[1739343035258,0.00384062,2604.5,2604.1,0.6072]
[1739343035560,0.00384062,2604.5,2604.1,1.1811]
[1739343036862,0.00384062,2604.5,2604.1,1.37549544]
[1739343040056,0.00384062,2604.5,2604.2,3.1542133]
[1739343040460,3.2078,2604.9,2604.3,0.5765]
[1739343041661,3.2078,2604.9,2604.3,0.58226092]
[1739343044361,3.2078,2604.9,2604.3,0.00576092]
[1739343044765,3.8038,2604.9,2604.3,0.00576092]
[1739343048365,0.596,2604.9,2604.3,0.00576092]
[1739343048568,3.8038,2604.9,2604.3,0.00576092]
[1739343051671,3.8038,2604.9,2604.5,3.2078]
[1739343052072,3.8038,2604.9,2604.6,1.1934]
[1739343052270,3.2078,2604.9,2604.6,1.1934]
[1739343054476,1.141,2605.0,2604.6,1.1934]
[1739343055177,1.141,2605.0,2604.6,4.3476133]
[1739343055371,0.6075,2605.3,2604.9,3.1542133]
[1739343055672,0.6075,2605.3,2605.0,41.3828]
[1739343055975,0.6075,2605.3,2605.0,40.8]
[1739343056170,0.6075,2605.3,2604.9,0.18874702]
[1739343056371,3.1542133,2605.2,2604.3,0.00576092]
[1739343056678,3.1542133,2604.9,2604.4,40.8]
[1739343056874,1.7821,2604.8,2604.4,40.8]
[1739343060572,3.2078,2604.7,2604.4,40.8]
[1739343065173,3.2078,2604.7,2604.4,41.4021]
[1739343070387,3.2078,2604.7,2604.4,40.8]
[1739343072585,3.2078,2604.7,2604.3,0.00576092]
[1739343074088,3.2078,2604.4,2604.3,0.00576092]
[1739343075887,1.7821,2604.8,2604.3,0.00576092]
[1739343076086,3.27112691,2604.7,2604.3,0.00576092]
[1739343076297,3.2078,2604.7,2604.3,0.00576092]
[1739343078404,3.2078,2604.4,2604.3,0.00576092]
[1739343079296,3.7917,2604.4,2604.3,0.00576092]
[1739343081398,3.2078,2604.7,2604.3,0.00576092]
[1739343083595,3.2078,2604.7,2604.5,3.1542133]
[1739343083803,3.2078,2604.7,2604.6,1.1827]
[1739343084005,1.1574,2605.1,2604.6,1.1827]
[1739343084295,3.2078,2605.2,2604.9,3.1542133]
[1739343084499,3.2078,2605.2,2605.0,0.589]
[1739343084702,3.2078,2605.2,2605.1,0.5821]
[1739343085398,3.2078,2605.5,2605.1,0.5821]
[1739343086104,3.2078,2605.5,2605.2,40.8]
[1739343087398,3.2078,2605.8,2605.2,43.9542133]
[1739343087801,3.2078,2605.8,2605.3,0.19364316]
[1739343088203,3.2078,2605.8,2605.4,0.5933]
[1739343088900,1.1291,2606.1,2605.5,6.3620133]
[1739343091408,1.1291,2606.1,2605.5,3.2078]
[1739343091603,1.1291,2606.1,2605.6,40.8]
[1739343092909,1.1291,2606.1,2605.5,3.2078]
[1739343093105,1.1291,2606.1,2605.6,3.1542133]
[1739343093406,1.1291,2606.1,2605.7,41.3934]
[1739343093802,1.1291,2606.1,2605.8,0.5739]
[1739343099509,1.1291,2606.1,2605.7,0.5934]
[1739343099910,1.7297,2606.1,2605.7,0.5934]
[1739343101608,1.7297,2606.1,2605.6,40.80576092]
[1739343109323,3.2078,2605.8,2605.6,40.80576092]
[1739343109517,0.5686,2605.7,2605.6,0.00576092]
[1739343110022,0.5686,2605.7,2604.9,3.1542133]
[1739343110023,0.5686,2605.7,2605.3,40.8]
[1739343110317,3.2078,2605.4,2604.8,3.2078]
[1739343110520,3.2078,2605.4,2604.7,1.1246]
[1739343110718,3.2078,2605.1,2604.8,40.8]
[1739343110910,0.5669,2605.0,2604.8,40.8]
[1739343111317,0.5686,2604.9,2604.8,40.8]
[1739343113115,0.5686,2604.9,2604.6,0.00576092]
[1739343113317,0.6068,2604.8,2604.6,0.00576092]
[1739343118120,0.06336428,2604.7,2604.6,0.00576092]
[1739343118316,0.6068,2604.8,2604.6,0.00576092]
[1739343120227,3.5858,2604.8,2604.6,0.00576092]
[1739343120524,0.06336304,2604.7,2604.6,0.00576092]
[1739343122027,0.06335677,2604.7,2604.6,0.00576092]
[1739343122928,9.04235677,2604.7,2604.0,40.8]
[1739343123224,3.2078,2604.1,2603.6,6.78850801]
[1739343123430,0.5581,2604.0,2603.6,7.37760801]
[1739343123826,0.5581,2604.0,2603.7,40.8]
[1739343124737,3.2078,2604.1,2603.7,40.8]
[1739343125033,3.2078,2604.1,2603.7,41.3863]
[1739343125523,1.669,2604.3,2603.7,41.3863]
[1739343126342,0.6123,2604.2,2603.7,41.3863]
[1739343128428,4.8768,2604.3,2603.7,41.3863]
[1739343135431,1.669,2604.3,2603.7,41.3863]
[1739343136840,2.2321,2604.3,2603.7,41.3863]
[1739343139737,0.5959,2604.2,2603.7,41.3863]
[1739343140340,0.5959,2604.2,2603.7,40.8]
[1739343140644,3.2078,2604.1,2603.7,40.8]
[1739343146845,6.1868,2604.1,2603.7,40.8]
[1739343147745,3.2078,2603.8,2603.7,40.8]
[1739343148139,3.2078,2603.8,2603.6,0.00576092]
[1739343148347,0.5878,2603.7,2603.6,0.00576092]
[1739343148534,0.5878,2603.7,2603.6,40.80576092]
[1739343148738,1.1845,2603.7,2603.6,40.80576092]
[1739343150849,1.1845,2603.7,2603.6,0.00576092]
[1739343151252,3.74713,2604.1,2603.6,40.80576092]
[1739343151253,6.1868,2604.1,2603.6,40.80576092]
[1739343151548,6.1868,2604.1,2603.7,1.1432]
[1739343151743,6.7635,2604.1,2603.7,1.1432]
[1739343152750,3.2078,2604.1,2603.7,1.1432]
[1739343152951,3.2078,2604.1,2603.8,0.5619]
[1739343153349,3.2078,2604.1,2603.9,3.1542133]
[1739343153553,2.979,2604.5,2603.9,6.3620133]
[1739343154446,0.6072,2604.4,2603.9,3.2078]
[1739343154749,3.7614133,2604.4,2603.9,3.2078]
[1739343154956,0.6104,2604.3,2603.8,0.5619]
[1739343155145,0.6104,2604.3,2603.7,1.33236154]
[1739343155547,0.6104,2604.3,2603.7,1.1432]
[1739343155959,3.2078,2604.1,2603.7,1.1432]
[1739343156353,0.6072,2604.0,2603.7,1.1432]
[1739343162257,0.6072,2604.0,2603.6,40.80576092]
[1739343162463,0.6072,2604.0,2603.6,0.00576092]
[1739343163365,3.2078,2603.8,2603.6,0.00576092]
[1739343163566,0.5809,2603.7,2603.6,0.00576092]
[1739343166459,3.5599,2603.7,2603.6,0.00576092]
[1739343167060,3.62326479,2603.7,2603.6,0.00576092]
[1739343167569,3.62326469,2603.7,2603.6,0.00576092]
[1739343169572,3.62326529,2603.7,2603.6,0.00576092]
[1739343169870,7.10812495,2603.7,2602.4,6.41510217]
[1739343170063,3.2078,2603.2,2602.7,0.6077]
[1739343170259,1.7094,2603.1,2602.8,40.8]
[1739343175570,3.2078,2602.9,2602.8,40.8]
[1739343176272,3.21356092,2603.2,2602.8,40.8]
[1739343176877,0.00576092,2603.2,2603.0,3.1542133]
[1739343177167,0.00576092,2603.2,2603.1,1.7755]
[1739343177367,3.2078,2603.6,2603.1,1.7755]
[1739343177567,3.2078,2603.6,2603.2,40.8]
[1739343181578,4.9498,2603.6,2603.2,40.8]
[1739343182175,3.2078,2603.6,2603.2,40.8]
[1739343182379,0.00576092,2603.7,2603.3,6.3620133]
[1739343183079,0.00576092,2603.7,2603.4,40.8]
[1739343183682,0.00576092,2603.7,2603.5,0.5581]
[1739343183879,0.00576092,2603.7,2603.6,0.6127]
[1739343184079,0.00576092,2603.7,2603.6,1.1791]
[1739343185671,0.00576092,2603.7,2603.6,4.3333133]
[1739343185877,3.2078,2604.4,2603.6,13.5411133]
[1739343186078,3.2078,2604.4,2603.9,3.1542133]
[1739343186374,3.2078,2604.4,2604.0,40.8]
[1739343186577,3.2078,2604.4,2604.1,1.2009]
[1739343186979,3.3716,2604.7,2604.1,1.2009]
[1739343186980,0.00576092,2604.5,2604.1,1.2009]
[1739343188779,0.00576092,2604.5,2604.1,1.39496225]
[1739343188971,0.00576092,2604.5,2604.2,0.553]
[1739343190381,0.00576092,2604.5,2604.2,3.7072133]
[1739343194985,0.00576092,2604.5,2604.2,0.553]
[1739343195179,3.15997422,2604.5,2604.2,0.553]
[1739343195486,1.1676,2604.4,2604.2,0.553]
[1739343195990,1.1676,2604.4,2604.1,0.78246225]
[1739343197394,4.3754,2604.4,2604.0,0.00576092]
[1739343200792,4.3754,2604.4,2604.0,0.55896092]
[1739343201485,4.3754,2604.4,2604.1,0.5576]
[1739343203795,4.3754,2604.4,2604.0,0.55896092]
[1739343203994,7.5296133,2604.4,2604.0,0.00576092]
[1739343204195,3.2078,2604.1,2604.0,0.00576092]
[1739343205498,6.3620133,2604.1,2604.0,0.00576092]
[1739343206495,6.4254562,2604.1,2604.0,0.00576092]
[1739343206696,6.3620133,2604.1,2604.0,0.00576092]
[1739343206888,6.42544568,2604.1,2604.0,0.00576092]
[1739343207084,6.4254419,2604.1,2604.0,0.00576092]
[1739343209893,9.4044419,2604.1,2604.0,0.00576092]
[1739343211896,9.40439776,2604.1,2604.0,0.00576092]
[1739343213105,9.40439643,2604.1,2604.0,0.00576092]
[1739343214805,9.40440753,2604.1,2604.0,0.00576092]
[1739343214998,6.19660753,2604.1,2604.0,0.00576092]
[1739343215306,9.40440753,2604.1,2604.0,0.00576092]
[1739343215995,6.42540753,2604.1,2604.0,0.00576092]
[1739343217692,3.21760753,2604.1,2604.0,0.00576092]
[1739343217896,6.42540753,2604.1,2604.0,0.00576092]
[1739343220603,6.42542187,2604.1,2604.0,0.00576092]
[1739343221805,9.40442187,2604.1,2604.0,0.00576092]
[1739343223512,9.40442182,2604.1,2604.0,0.00576092]
[1739343226106,6.1868,2604.1,2604.0,0.00576092]
[1739343227703,3.2078,2604.1,2604.0,0.00576092]
[1739343230510,3.27122092,2604.1,2604.0,0.00576092]
[1739343233510,3.2078,2604.1,2604.0,0.00576092]
[1739343239022,3.63157128,2604.1,2604.0,0.00576092]
[1739343239211,3.63157128,2604.1,2603.5,41.394]
[1739343239412,3.2078,2603.7,2603.5,41.394]
[1739343239611,3.2078,2603.7,2603.6,0.5578]
[1739343239816,3.2078,2604.0,2603.6,0.5578]
[1739343242212,2.979,2604.1,2603.6,3.7120133]
[1739343242409,2.979,2604.1,2603.6,6.9198133]
[1739343242608,3.2078,2604.3,2603.6,6.9198133]
[1739343244318,3.2078,2604.3,2603.9,3.1542133]
[1739343244520,3.2078,2604.3,2604.0,1.1807]
[1739343244818,3.2078,2604.3,2604.1,0.5746]
[1739343245011,3.2078,2604.3,2604.0,1.1807]
[1739343248224,3.2078,2604.4,2604.0,1.1807]
[1739343249618,0.5815,2604.3,2604.0,1.1807]
[1739343250022,3.2078,2604.4,2604.0,1.1807]
[1739343260030,3.2078,2604.4,2604.0,0.6089]
[1739343262434,3.2078,2604.4,2603.8,0.555]
[1739343262635,6.3620133,2604.4,2603.8,0.555]
[1739343263134,0.06342013,2604.3,2603.8,0.555]
[1739343263329,3.2078,2604.1,2603.8,0.555]
[1739343263531,1.1239,2604.0,2603.8,0.555]
[1739343263730,1.1239,2604.0,2603.5,41.39776092]
[1739343263731,1.1239,2604.0,2603.5,40.80576092]
[1739343263937,6.3620133,2603.8,2603.5,40.80576092]
[1739343264128,0.5723,2603.7,2603.5,40.80576092]
[1739343264543,0.5934,2603.6,2603.5,40.80576092]
[1739343264749,0.5934,2603.6,2603.5,0.00576092]
[1739343265546,0.65679508,2603.6,2603.5,0.00576092]
[1739343267152,0.65678645,2603.6,2603.5,0.00576092]
[1739343268453,0.5934,2603.6,2603.5,0.00576092]
[1739343268854,0.65678665,2603.6,2603.5,0.00576092]
[1739343273152,0.5934,2603.6,2603.5,0.00576092]
[1739343275152,0.65679433,2603.6,2603.5,0.00576092]
[1739343277563,0.65679433,2603.6,2603.0,40.8]
[1739343277757,3.2078,2603.1,2603.0,40.8]
[1739343278065,3.2078,2603.1,2602.8,0.6119]
[1739343278261,1.1314,2603.0,2602.6,0.5972]
[1739343278455,1.1314,2603.0,2602.7,0.00576092]
[1739343278656,1.1314,2603.0,2602.7,40.80576092]
[1739343278963,5.9536133,2603.0,2602.7,40.80576092]
[1739343279156,5.9536133,2603.0,2602.7,0.00576092]
[1739343279357,3.2078,2602.8,2602.7,0.00576092]
[1739343281659,3.27116373,2602.8,2602.7,0.00576092]
[1739343281865,3.27116333,2602.8,2602.7,0.00576092]
[1739343284167,6.25016333,2602.8,2602.7,0.00576092]
[1739343286664,6.25014374,2602.8,2602.7,0.00576092]
[1739343287665,6.25014454,2602.8,2602.7,0.00576092]
[1739343290262,3.27114454,2602.8,2602.7,0.00576092]
[1739343291867,0.06334454,2602.8,2602.7,0.00576092]
[1739343292170,3.27114339,2602.8,2602.7,0.00576092]
[1739343293866,3.27114249,2602.8,2602.7,0.00576092]
[1739343295570,3.27114289,2602.8,2602.7,0.00576092]
[1739343296166,6.25014289,2602.8,2602.7,0.00576092]
[1739343297371,6.25014376,2602.8,2602.7,0.00576092]
[1739343297968,6.25014333,2602.8,2602.7,0.00576092]
[1739343298770,3.04234333,2602.8,2602.7,0.00576092]
[1739343298966,6.25014333,2602.8,2602.7,0.00576092]
[1739343299169,6.61071754,2602.8,2602.1,1.1619]
[1739343299469,3.2078,2602.2,2602.1,1.1619]
[1739343300067,3.2078,2602.2,2601.5,0.19076895]
[1739343300268,3.2078,2601.8,2601.6,1.7673]
[1739343300575,3.2078,2601.8,2601.6,1.77306092]
[1739343305972,3.2078,2601.8,2601.7,40.8]
[1739343306377,3.2078,2601.8,2601.6,1.96074672]
[1739343306876,3.2078,2601.8,2601.6,42.76074672]
[1739343312978,3.2078,2602.3,2601.6,45.91496002]
[1739343313179,4.8758,2602.3,2601.6,45.91496002]
[1739343313680,3.2078,2602.3,2601.6,45.91496002]
[1739343315273,3.2078,2602.3,2601.9,3.1542133]
[1739343315578,3.2078,2602.3,2602.0,0.5841]
[1739343315779,3.2078,2602.3,2602.1,1.2076]
[1739343316779,3.2078,2602.6,2602.1,1.2076]
[1739343317172,3.2078,2602.6,2602.1,4.3618133]
[1739343317379,3.2078,2602.6,2602.4,3.1542133]
[1739343317684,3.2078,2602.6,2602.5,0.5841]
[1739343318284,4.647,2603.0,2602.5,0.5841]
[1739343318285,7.8548,2603.0,2602.5,0.5841]
[1739343318483,4.8758,2603.0,2602.6,1.1423]
[1739343318885,3.1542133,2602.8,2602.5,0.5841]
[1739343319082,0.5802,2602.7,2602.5,0.5841]
[1739343319278,1.1341,2602.7,2602.5,0.5841]
[1739343332698,1.1341,2602.7,2602.3,0.1923565]
[1739343332886,1.1341,2602.7,2602.3,0.7834565]
[1739343336200,0.5539,2602.7,2602.3,0.7834565]
[1739343336899,0.5539,2602.7,2602.5,0.0027835]
[1739343356522,3.814,2602.8,2602.5,0.0027835]
[1739343356720,3.814,2602.8,2602.5,1.1511835]
[1739343356923,3.814,2602.8,2602.6,0.5749]
[1739343356924,3.2078,2602.8,2602.6,0.5749]
[1739343357118,0.00576092,2603.1,2602.6,0.5749]
[1739343357315,3.2078,2602.9,2602.5,0.0027835]
[1739343357619,4.8688133,2602.8,2602.5,0.0027835]
[1739343359420,3.2078,2602.6,2602.5,0.0027835]
[1739343361825,3.27120352,2602.6,2602.5,0.0027835]
[1739343362024,3.631753,2602.6,2602.5,0.0027835]
[1739343362721,4.93820352,2602.6,2602.5,0.0027835]
[1739343364231,1.73040352,2602.6,2602.5,0.0027835]
[1739343364532,4.93820352,2602.6,2602.5,0.0027835]
[1739343368223,4.9381442,2602.6,2602.5,0.0027835]
[1739343369925,4.93812526,2602.6,2602.5,0.0027835]
[1739343372333,7.91712526,2602.6,2602.5,0.0027835]
[1739343372534,7.91712526,2602.6,2601.6,0.19344672]
[1739343372835,3.2078,2602.1,2601.6,0.76584672]
[1739343373031,3.2078,2601.8,2601.6,0.00576092]
[1739343373628,1.56178222,2601.7,2601.6,0.00576092]
[1739343375733,3.17242938,2601.7,2601.6,0.00576092]
[1739343378537,6.38022938,2601.7,2601.6,0.00576092]
[1739343382540,0.76887,2601.6,2600.9,0.5775]
[1739343382742,3.2078,2601.0,2600.9,0.582]
[1739343383043,3.2078,2601.0,2600.9,41.382]
[1739343385346,0.00576092,2601.2,2600.9,41.382]
[1739343393448,0.00576092,2601.2,2601.0,3.17242938]
[1739343393746,3.2078,2601.6,2601.1,0.5696]
[1739343393949,3.2078,2601.6,2601.2,0.5912]
[1739343394145,3.2078,2601.6,2601.3,40.8]
[1739343394446,6.38022938,2601.6,2601.3,40.8]
[1739343394644,7.51252938,2601.6,2601.3,40.8]
[1739343395148,3.2078,2601.6,2601.3,40.8]
[1739343396945,3.2078,2601.6,2601.4,0.5737]
[1739343397251,3.2078,2601.6,2601.5,0.5981]
[1739343397646,3.2078,2601.6,2601.4,0.5737]
[1739343398552,3.2078,2601.6,2601.2,0.5912]
[1739343398553,6.38022938,2601.6,2601.2,0.5912]
[1739343398754,6.38022938,2601.6,2601.3,0.5776]
[1739343400952,3.2078,2601.6,2601.3,0.5776]
[1739343403154,4.8748,2601.6,2601.3,0.5776]
[1739343403855,4.8748,2601.6,2601.2,0.5912]
[1739343408944,3.2078,2601.6,2601.2,0.5912]
[1739343409148,1.667,2601.6,2601.2,0.5912]
[1739343411958,2.28426092,2601.7,2601.2,0.5912]
[1739343412957,3.82506092,2601.7,2601.2,0.5912]
[1739343413261,5.49206092,2601.7,2601.2,0.5912]
[1739343414860,5.49206092,2601.7,2600.8,3.40237548]
[1739343414861,3.2078,2601.4,2600.8,3.40237548]
[1739343415063,3.2078,2601.1,2600.8,0.80157548]
[1739343417155,4.89122938,2601.3,2600.8,0.80157548]
[1739343418955,4.89122938,2601.3,2600.8,1.57067548]
[1739343419154,4.89122938,2601.3,2600.8,0.80157548]
[1739343419355,1.7188,2601.3,2600.8,1.57068548]
[1739343419553,1.7188,2601.3,2600.8,0.80157548]
[1739343419759,1.7188,2601.3,2600.8,1.57067548]
[1739343419954,0.00576092,2601.7,2601.2,3.2078]
[1739343420161,0.00576092,2601.7,2601.4,0.76891]
[1739343420460,0.00576092,2601.7,2601.5,3.2078]
[1739343420662,0.00576092,2601.7,2601.5,44.0078]
[1739343420962,0.00576092,2601.7,2601.6,0.76887]
[1739343422864,0.00576092,2601.7,2601.5,44.0078]
[1739343423263,0.00576092,2601.7,2601.6,0.76887]
[1739343423960,0.00576092,2601.7,2601.5,44.0078]
[1739343424167,0.00576092,2601.7,2601.6,0.95801656]
[1739343424560,0.00576092,2601.7,2601.6,4.13044594]
[1739343427563,2.8104,2602.5,2602.0,0.76873]
[1739343427765,1.7421,2602.5,2602.1,0.5781]
[1739343428271,1.7421,2602.5,2602.1,1.1558]
[1739343428567,1.7421,2602.5,2602.1,1.92452]
[1739343429577,1.7421,2602.5,2602.1,1.1558]
[1739343430368,1.7421,2602.5,2602.1,1.92452]
[1739343430667,1.7421,2602.5,2602.1,1.1558]
[1739343431559,1.7421,2602.5,2602.1,1.92451]
[1739343432071,1.7421,2602.5,2602.1,1.1558]
[1739343432668,1.7421,2602.5,2602.2,0.76868]
[1739343432867,1.7421,2602.5,2602.2,3.97648]
[1739343434075,0.00576092,2602.6,2602.3,3.36938771]
[1739343434266,0.00576092,2602.6,2602.5,0.7686]
[1739343434570,0.58596092,2602.6,2602.5,3.9764]
[1739343434764,0.00576092,2602.6,2602.5,3.9764]
[1739343434959,0.00576092,2602.6,2602.5,7.14882938]
[1739343435163,3.2078,2603.6,2602.7,1.92136]
[1739343435364,1.1878,2603.5,2603.4,3.17242938]
[1739343435566,1.1878,2603.5,2603.3,40.8]
[1739343437072,1.1878,2603.5,2603.3,41.56834]
[1739343437869,1.1878,2603.5,2603.3,40.8]
[1739343438074,0.00576092,2603.7,2603.6,0.76828]
[1739343438375,0.00576092,2603.7,2603.6,7.14850938]
[1739343439266,0.5986,2604.3,2603.6,6.38022938]
[1739343439468,1.2033,2604.3,2604.1,0.76813]
[1739343440169,1.2033,2604.3,2604.0,44.0078]
[1739343440367,0.6056,2604.6,2604.1,3.17242938]
[1739343440566,0.00576092,2604.4,2604.3,7.14829938]
[1739343440768,0.00576092,2604.4,2604.3,3.97587]
[1739343441071,0.00576092,2604.4,2604.0,40.8]
[1739343441072,6.3859903,2604.4,2604.0,40.8]
[1739343441271,0.5858,2604.3,2603.9,6.38022938]
[1739343441571,0.00576092,2604.4,2604.2,3.2078]
[1739343441776,0.00576092,2604.4,2604.3,3.94049938]
[1739343442172,0.5858,2604.9,2604.8,0.76792]
[1739343442378,0.5858,2604.9,2604.2,6.29502]
[1739343442379,0.5858,2604.9,2604.7,3.2078]
[1739343442572,2.7844,2605.1,2604.7,44.0078]
[1739343442874,2.7844,2605.1,2604.8,0.76791]
[1739343443072,2.7844,2605.1,2604.7,44.0078]
[1739343443073,2.7844,2605.1,2604.7,44.77573]
[1739343443474,1.1184,2605.1,2604.9,0.76789]
[1739343443674,0.5858,2605.3,2605.0,3.2078]
[1739343445674,0.5858,2605.3,2605.0,3.97565]
[1739343445973,0.5858,2605.3,2605.0,3.2078]
[1739343446880,0.5858,2605.3,2605.1,0.19559638]
[1739343447578,0.5958,2605.2,2605.1,0.19559638]
[1739343449378,0.5654,2605.5,2605.1,0.19559638]
[1739343449680,0.5654,2605.5,2605.2,3.17242938]
[1739343452479,0.5654,2605.5,2605.4,3.2078]
[1739343457891,0.5654,2605.5,2605.1,0.19559638]
[1739343457892,3.7732,2605.5,2605.1,0.19559638]
[1739343458184,0.5654,2605.5,2605.1,0.19559638]
[1739343458781,0.5654,2605.5,2604.8,3.2078]
[1739343458983,1.665,2605.4,2604.8,3.39963348]
[1739343459178,3.17242938,2605.3,2604.8,3.39963348]
[1739343459380,0.5757,2605.2,2604.8,3.39963348]
[1739343459588,1.1859,2605.2,2604.8,3.39963348]
[1739343466594,0.5654,2605.5,2604.9,3.94030938]
[1739343466784,0.5654,2605.5,2604.9,3.76872938]
[1739343467589,0.5654,2605.5,2604.8,3.39963348]
[1739343467991,3.2078,2605.3,2604.8,3.39963348]
[1739343468292,6.38022938,2605.3,2604.8,3.39963348]
[1739343468691,3.2078,2606.4,2605.2,3.2078]
[1739343468992,3.2078,2605.8,2605.3,4.35022938]
[1739343469194,1.1852,2605.7,2605.3,4.35022938]
[1739343469493,1.7371,2605.7,2605.3,4.35022938]
[1739343469687,1.1852,2605.7,2605.5,3.2078]
[1739343470287,1.1852,2605.7,2605.6,0.19253521]
[1739343470687,1.1852,2605.7,2605.6,0.75495961]
[1739343471391,1.1852,2605.7,2605.6,0.19253521]
[1739343481898,1.669,2606.0,2605.6,0.19253521]
[1739343483902,0.00300163,2605.8,2605.6,0.19253521]
[1739343489003,3.2078,2605.7,2605.2,3.2078]
[1739343489216,1.7381,2605.6,2605.2,3.2078]
[1739343491618,1.7381,2605.6,2605.5,0.19307139]
[1739343494016,1.7381,2605.6,2605.1,0.5859]
[1739343494422,1.7381,2605.6,2605.0,3.72762938]
[1739343498520,3.2078,2605.4,2605.0,3.72762938]
[1739343498735,3.2078,2605.4,2605.0,0.5552]
[1739343499325,3.2078,2605.4,2604.8,0.77363348]
[1739343499623,4.8718,2605.4,2604.8,0.77363348]
[1739343499926,3.17242938,2605.2,2604.8,0.19183348]
[1739343500131,1.1523,2605.1,2604.8,0.19183348]
[1739343500323,1.7586,2605.1,2604.8,0.19183348]
[1739343509235,1.7586,2605.1,2604.7,0.58016092]
[1739343509236,1.7586,2605.1,2604.7,0.00576092]
[1739343515038,4.9664,2605.1,2604.7,0.00576092]
[1739343515240,4.9664,2605.1,2604.7,40.80576092]
[1739343517039,4.9664,2605.1,2604.7,0.00576092]
[1739343517836,1.7586,2605.1,2604.7,0.00576092]
[1739343518041,4.9664,2605.1,2604.7,0.00576092]
[1739343519147,4.9664,2605.1,2604.8,0.18975207]
[1739343519346,3.2078,2605.1,2604.8,0.18975207]
[1739343519549,3.2078,2605.1,2604.9,1.1549]
[1739343520643,3.2078,2605.4,2605.0,3.17242938]
[1739343520950,3.21080163,2605.8,2605.3,3.17242938]
[1739343521152,3.21080163,2605.8,2605.4,1.7653]
[1739343522441,0.00300163,2605.8,2605.6,3.17242938]
[1739343523053,4.643,2606.5,2605.7,40.99628781]
[1739343523244,1.664,2606.5,2606.1,3.17242938]
[1739343523445,3.2078,2606.6,2606.4,3.17242938]
[1739343524848,3.2078,2607.0,2606.4,3.17242938]
[1739343525244,4.8718,2607.0,2606.4,3.17242938]
[1739343527349,4.8718,2607.0,2606.5,0.19060276]
[1739343527550,3.2078,2607.0,2606.5,0.19060276]
[1739343528451,3.2078,2607.0,2606.6,40.8]
[1739343528844,3.2078,2607.0,2606.7,0.6004]
[1739343529360,1.664,2607.1,2606.7,0.6004]
[1739343531756,3.2078,2606.9,2606.3,3.2078]
[1739343532057,1.1694,2606.8,2606.3,3.2078]
[1739343532258,1.7352,2606.8,2606.3,3.2078]
[1739343537956,3.17242938,2606.7,2606.0,3.21356092]
[1739343538158,3.93980938,2606.7,2606.0,3.21356092]
[1739343538952,3.2078,2606.6,2606.0,0.00576092]
[1739343539160,2.43144,2606.5,2606.0,0.00576092]
[1739343539362,1.664,2606.5,2606.0,0.00576092]
[1739343539758,2.43142,2606.5,2606.0,0.00576092]
[1739343539962,1.664,2606.5,2606.0,0.00576092]
[1739343540551,2.43144,2606.5,2606.0,0.00576092]
[1739343540757,1.664,2606.5,2606.0,0.00576092]
[1739343540960,3.2078,2606.3,2606.0,0.00576092]
[1739343541152,1.1229,2606.2,2606.0,0.00576092]
[1739343541361,2.46231,2606.2,2606.0,0.00576092]
[1739343541561,1.6948,2606.2,2606.0,0.00576092]
[1739343542063,2.46232,2606.2,2606.0,0.00576092]
[1739343542861,5.44132,2606.2,2606.0,0.00576092]
[1739343543057,3.17242938,2606.1,2605.4,3.2078]
[1739343543260,3.2078,2605.9,2605.4,3.2078]
[1739343543458,4.8718,2605.9,2605.2,45.11322938]
[1739343544154,5.63942,2605.9,2605.2,45.11322938]
[1739343544356,0.77339092,2605.8,2605.3,0.00576092]
[1739343544553,1.1251,2605.7,2605.3,0.00576092]
[1739343544755,2.44426,2605.7,2605.3,0.00576092]
[1739343544957,3.2078,2605.6,2605.3,0.00576092]
[1739343545159,3.97551,2605.6,2605.3,0.00576092]
[1739343545876,3.2078,2605.6,2605.3,0.00576092]
[1739343546662,0.76775,2605.4,2605.3,0.00576092]
[1739343546964,6.2147243,2605.5,2604.6,3.17242938]
[1739343547263,3.2078,2604.9,2604.4,5.92120344]
[1739343547460,3.2078,2604.9,2604.5,40.8]
[1739343547668,1.2133,2604.8,2604.5,40.8]
[1739343553070,4.4211,2604.8,2604.5,40.8]
[1739343555670,1.2133,2604.8,2604.5,40.8]
[1739343555976,4.4211,2604.8,2604.5,40.8]
[1739343556473,3.2078,2605.1,2604.5,40.8]
[1739343556680,3.97564,2605.1,2604.5,40.8]
[1739343556873,1.7335,2605.0,2604.5,40.8]
[1739343557977,3.2078,2604.8,2604.5,40.8]
[1739343559379,3.2078,2604.8,2604.4,0.00576092]
[1739343559578,3.94043938,2604.5,2604.4,0.00576092]
[1739343559881,1.665,2604.6,2604.4,0.00576092]
[1739343560274,3.2078,2604.5,2604.4,0.00576092]
[1739343564183,3.97581,2604.5,2604.4,0.00576092]
[1739343564385,5.13931,2604.5,2604.4,0.00576092]
[1739343564778,5.73741,2604.5,2604.4,0.00576092]
[1739343564984,4.9694,2604.5,2604.4,0.00576092]
[1739343565388,5.73741,2604.5,2604.4,0.00576092]
[1739343568688,4.9694,2604.5,2604.4,0.00576092]
[1739343569485,5.73741,2604.5,2604.4,0.00576092]
[1739343571892,8.90983938,2604.5,2604.4,0.00576092]
[1739343572293,8.20514564,2604.5,2604.1,0.5944]
[1739343572489,6.38022938,2604.2,2603.5,3.2078]
[1739343572695,1.34355,2604.1,2603.6,1.1557]
[1739343572992,3.2078,2603.9,2603.7,40.8]
[1739343573192,3.2078,2603.9,2603.6,1.1557]
[1739343573193,0.76825,2603.7,2603.6,1.1557]
[1739343573397,0.76825,2603.7,2603.6,0.5729]
[1739343573594,0.76825,2603.7,2603.6,41.3729]